bitfinex-derivatives/quotes_SOLF0:USTF0_20251211
["timestamp","ask_amount","ask_price","bid_price","bid_amount"]
[1765419494474,3.31,131.38,131.3,106.6044]
[1765419494776,10.08244267,131.36,131.29,3.4]
[1765419494966,3.31,131.36,131.3,106.6042]
[1765419495173,10.08244267,131.39,131.3,10.2531]
[1765419495469,0.0573502,131.36,131.33,0.05603344]
[1765419495677,3.3673502,131.36,131.33,0.05603344]
[1765419496569,0.0573502,131.36,131.33,0.05603344]
[1765419497165,10.13979287,131.36,131.33,0.05603344]
[1765419497573,3.3673502,131.36,131.33,0.05603344]
[1765419497770,0.0573502,131.36,131.33,0.05603344]
[1765419497975,3.3673502,131.36,131.33,0.05603344]
[1765419498574,10.13979287,131.36,131.33,0.05603344]
[1765419498772,3.31,131.35,131.33,0.05603344]
[1765419499580,3.31,131.34,131.33,0.05603344]
[1765419500266,3.31,131.34,131.28,3.4]
[1765419501277,0.04887529,131.32,131.28,3.4]
[1765419501576,0.04887529,131.32,131.28,10.2541]
[1765419501782,0.04887529,131.32,131.3,3.4]
[1765419501984,3.31,131.37,131.31,174.636]
[1765419502277,3.31,131.43,131.35,109.9617]
[1765419502875,109.7979,131.45,131.38,3.4]
[1765419503184,3.36835794,131.43,131.4,0.05195522]
[1765419503485,3.36835794,131.43,131.34,3.4]
[1765419503486,3.31,131.42,131.34,3.4]
[1765419504385,3.31,131.41,131.34,3.4]
[1765419504580,3.36418468,131.39,131.34,3.4]
[1765419504780,0.05418468,131.39,131.34,3.4]
[1765419504986,3.36418468,131.39,131.34,3.4]
[1765419505880,0.05418468,131.39,131.36,3.4]
[1765419506084,0.05418468,131.39,131.33,3.4]
[1765419506383,0.05418468,131.39,131.35,3.4]
[1765419506588,0.05444712,131.38,131.35,3.4]
[1765419508183,0.05444712,131.38,131.36,3.4]
[1765419508378,3.31,131.45,131.37,68.06]
[1765419509288,0.05695539,131.42,131.4,0.04843795]
[1765419509588,0.05695539,131.42,131.4,3.44843795]
[1765419509781,0.05695539,131.42,131.4,0.04843795]
[1765419510486,0.05695539,131.42,131.4,3.44843795]
[1765419510682,3.36695539,131.42,131.4,0.04843795]
[1765419510885,0.05695539,131.42,131.4,0.04843795]
[1765419511790,109.87705539,131.42,131.4,0.04843795]
[1765419511984,3.31,131.41,131.4,0.04843795]
[1765419514990,109.6361,131.39,131.33,3.32]
[1765419515392,6.8495,131.38,131.33,3.32]
[1765419515595,6.8495,131.38,131.3,3.32]
[1765419515596,3.1,131.36,131.3,3.32]
[1765419515999,3.15420324,131.34,131.27,3.32]
[1765419516194,3.15420324,131.34,131.28,67.98]
[1765419516398,0.05660786,131.32,131.29,3.32]
[1765419518198,0.05660786,131.32,131.23,3.32]
[1765419518404,117.3409806,131.31,131.21,3.32]
[1765419518603,6.8529,131.31,131.22,3.32]
[1765419518804,0.05231421,131.28,131.26,3.32]
[1765419518998,0.05231421,131.28,131.25,6.8556]
[1765419518999,109.6611,131.36,131.28,3.32]
[1765419519196,3.1,131.34,131.19,401.6911]
[1765419519408,3.1,131.32,131.24,3.32]
[1765419520105,0.05539717,131.29,131.28,3.32]
[1765419520400,10.00992277,131.3,131.27,0.05733675]
[1765419520602,3.15622277,131.3,131.27,0.05733675]
[1765419521006,3.15622277,131.3,131.23,3.32]
[1765419521308,3.1,131.27,131.2,3.32]
[1765419521694,6.8563,131.25,131.2,3.32]
[1765419521898,9.9563,131.25,131.2,3.32]
[1765419522102,106.6166,131.29,131.2,3.32]
[1765419522103,0.04981299,131.24,131.2,3.32]
[1765419523095,106.6039,131.31,131.22,3.32]
[1765419523295,109.7039,131.31,131.23,3.32]
[1765419523514,9.9537,131.3,131.23,3.32]
[1765419523699,116.5611,131.3,131.23,3.32]
[1765419524210,3.14874631,131.28,131.25,0.0530614]
[1765419524394,0.04874631,131.28,131.25,0.0530614]
[1765419524596,109.77464631,131.28,131.25,0.0530614]
[1765419525202,6.8548,131.27,131.25,0.0530614]
[1765419525410,9.9548,131.27,131.25,0.0530614]
[1765419526109,0.04874631,131.28,131.25,0.0530614]
[1765419526307,0.04874631,131.28,131.25,3.3730614]
[1765419526907,109.77224631,131.28,131.25,0.0530614]
[1765419527105,3.1,131.27,131.25,0.0530614]
[1765419527308,9.9552,131.27,131.25,0.0530614]
[1765419528016,6.8552,131.27,131.25,0.0530614]
[1765419528213,9.9552,131.27,131.25,0.0530614]
[1765419528911,3.1,131.26,131.25,0.0530614]
[1765419529697,9.9562,131.25,131.19,3.32]
[1765419529913,116.6047,131.25,131.19,3.32]
[1765419530117,6.8562,131.25,131.19,3.32]
[1765419530504,3.1,131.24,131.17,7.57052548]
[1765419530703,0.04866265,131.22,131.17,7.57052548]
[1765419531011,0.04866265,131.22,131.18,3.32]
[1765419531207,6.90616265,131.22,131.18,3.32]
[1765419531511,109.82086265,131.22,131.18,3.32]
[1765419531704,109.82086265,131.22,131.17,4.25052548]
[1765419531705,3.1,131.21,131.17,4.25052548]
[1765419531905,3.1,131.21,131.17,7.57052548]
[1765419532117,6.90646265,131.22,131.18,3.32]
[1765419532316,0.04866265,131.22,131.18,3.32]
[1765419534211,0.04866265,131.22,131.19,10.1786]
[1765419534411,0.04866265,131.22,131.2,3.32]
[1765419535208,113.4739,131.29,131.2,3.32]
[1765419535403,5.64344672,131.28,131.21,3.32]
[1765419535610,5.64344672,131.27,131.21,3.32]
[1765419535812,5.64344672,131.26,131.21,3.32]
[1765419536118,5.64344672,131.25,131.21,3.32]
[1765419536309,5.64344672,131.24,131.22,3.37013809]
[1765419536508,5.64344672,131.23,131.22,0.05013809]
[1765419538108,5.66639131,131.23,131.22,0.05013809]
[1765419538308,9.9574,131.22,131.18,3.32]
[1765419538615,5.66639131,131.21,131.18,3.32]
[1765419538818,5.66282064,131.2,131.18,3.32]
[1765419539022,6.8583,131.21,131.18,3.32]
[1765419539220,5.66511153,131.2,131.18,3.32]
[1765419539414,6.91470323,131.21,131.17,7.57052548]
[1765419539811,0.05640323,131.21,131.18,3.32]
[1765419540118,0.05640323,131.21,131.19,3.32]
[1765419540911,6.91460323,131.21,131.17,7.57052548]
[1765419541107,3.15640323,131.21,131.17,7.57052548]
[1765419541311,0.05640323,131.21,131.17,7.57052548]
[1765419541515,0.05640323,131.21,131.18,3.32]
[1765419542015,6.91470323,131.21,131.18,3.32]
[1765419542216,0.05640323,131.21,131.18,3.32]
[1765419542524,3.1,131.28,131.19,3.32]
[1765419542716,6.8556,131.26,131.2,3.32]
[1765419542912,3.1,131.23,131.17,4.25052548]
[1765419543116,8.75793754,131.22,131.17,7.57052548]
[1765419543317,0.05255836,131.21,131.18,0.05567308]
[1765419543518,0.05255836,131.21,131.18,3.37567308]
[1765419544023,0.05255836,131.21,131.18,0.05567308]
[1765419544417,0.05255836,131.21,131.18,3.48567308]
[1765419544920,0.05255836,131.21,131.18,0.05567308]
[1765419545120,0.05255836,131.21,131.18,3.48567308]
[1765419545924,0.05255836,131.21,131.2,3.43]
[1765419546129,3.31,131.28,131.2,3.43]
[1765419546629,3.31,131.3,131.23,3.43]
[1765419547023,0.05494238,131.28,131.25,0.0574655]
[1765419547325,109.98904238,131.28,131.25,0.0574655]
[1765419547528,3.31,131.26,131.25,0.0574655]
[1765419548723,3.36494238,131.28,131.25,0.0574655]
[1765419550832,3.38,131.26,131.25,0.0574655]
[1765419551518,3.38,131.27,131.25,0.0574655]
[1765419551830,3.43494238,131.28,131.25,0.0574655]
[1765419552529,0.05494238,131.28,131.25,3.4574655]
[1765419553226,0.05494238,131.28,131.25,0.0574655]
[1765419553227,3.43494238,131.28,131.25,0.0574655]
[1765419553828,3.38,131.27,131.25,0.0574655]
[1765419554533,6.90954238,131.28,131.25,0.0574655]
[1765419554534,10.28954238,131.28,131.25,0.0574655]
[1765419554728,0.05494238,131.28,131.25,3.4574655]
[1765419555730,0.05494238,131.28,131.25,0.0574655]
[1765419556232,0.05494238,131.28,131.25,3.4574655]
[1765419557128,3.43494238,131.28,131.25,0.0574655]
[1765419557932,10.235,131.27,131.25,0.0574655]
[1765419560225,0.05494238,131.28,131.25,0.0574655]
[1765419560435,0.05494238,131.28,131.25,3.4574655]
[1765419562130,3.38,131.33,131.27,3.4]
[1765419562328,113.27975008,131.36,131.27,3.4]
[1765419562329,10.09745008,131.36,131.27,3.4]
[1765419562531,5.6485889,131.35,131.29,3.4]
[1765419562729,128.84186761,131.39,131.28,106.6191]
[1765419562730,19.75850052,131.39,131.31,3.4]
[1765419562930,5.65105371,131.38,131.31,3.4]
[1765419563133,10.2283,131.4,131.33,3.4]
[1765419563332,15.38270334,131.44,131.35,3.4]
[1765419563531,5.64889492,131.43,131.35,3.4]
[1765419563740,29.98370052,131.46,131.38,3.4]
[1765419563936,5.64978574,131.45,131.38,3.4]
[1765419564138,10.2252,131.46,131.36,106.5536]
[1765419564139,3.38,131.46,131.39,64.72]
[1765419564339,3.38,131.46,131.39,68.12]
[1765419564536,0.05691398,131.44,131.41,3.45226134]
[1765419565039,0.05691398,131.44,131.41,0.05226134]
[1765419565240,3.43691398,131.44,131.41,0.05226134]
[1765419565539,109.8817,131.43,131.41,0.05226134]
[1765419565842,3.38,131.43,131.41,0.05226134]
[1765419566435,3.43691398,131.44,131.41,0.05226134]
[1765419566839,171.2176,131.49,131.41,0.05226134]
[1765419566840,3.38,131.49,131.42,3.4]
[1765419567139,3.38,131.51,131.42,3.4]
[1765419567538,13.04105044,131.54,131.45,3.4]
[1765419567736,0.05485099,131.51,131.48,0.05249356]
[1765419567937,0.05485099,131.51,131.48,3.45249356]
[1765419569450,3.38,131.59,131.5,3.4]
[1765419569837,6.8388,131.58,131.5,3.4]
[1765419570338,3.38,131.63,131.55,3.4]
[1765419570738,106.3268,131.65,131.56,3.4]
[1765419570739,6.8351,131.65,131.56,3.4]
[1765419570940,122.74135044,131.66,131.58,3.4]
[1765419570941,3.38,131.66,131.58,3.4]
[1765419571148,3.38,131.66,131.59,3.4]
[1765419571334,3.38,131.66,131.58,106.3763]
[1765419571335,0.05161305,131.64,131.61,3.45218908]
[1765419571530,0.05351587,131.64,131.61,3.45292626]
[1765419572041,3.38,131.62,131.61,0.05292626]
[1765419572351,3.38,131.62,131.54,3.4]
[1765419572539,3.38,131.62,131.55,64.66]
[1765419572731,3.38,131.62,131.28,18.68553647]
[1765419572732,109.7481,131.6,131.46,106.4692]
[1765419572931,106.3826,131.58,131.5,3.4]
[1765419573144,106.3535,131.62,131.5,3.4]
[1765419573145,3.38,131.63,131.52,116.6666]
[1765419573343,109.7254,131.63,131.54,3.4]
[1765419573544,106.3601,131.61,131.54,3.4]
[1765419574139,3.35,131.59,131.5,3.23]
[1765419574342,0.04802367,131.56,131.53,0.05491088]
[1765419574947,0.04802367,131.56,131.53,3.28491088]
[1765419575251,3.39802367,131.56,131.53,0.05491088]
[1765419575459,106.4204,131.53,131.45,3.23]
[1765419575642,3.35,131.52,131.45,3.23]
[1765419576041,13.04105044,131.55,131.46,3.23]
[1765419576245,116.5923,131.56,131.46,3.23]
[1765419576447,0.05817166,131.52,131.5,0.04946603]
[1765419576653,6.8387,131.59,131.5,3.27946603]
[1765419576852,6.8387,131.59,131.5,3.23]
[1765419577260,3.35,131.6,131.51,3.23]
[1765419577755,0.05184282,131.57,131.54,3.28699226]
[1765419577965,0.05184282,131.57,131.54,3.28112686]
[1765419578550,3.35,131.64,131.54,3.28112686]
[1765419578763,3.35,131.64,131.55,3.23]
[1765419579650,0.05614456,131.61,131.58,3.28631668]
[1765419580358,119.35175044,131.67,131.59,67.85]
[1765419580359,3.35,131.67,131.59,67.85]
[1765419581057,3.35,131.67,131.6,3.23]
[1765419581352,3.35,131.67,131.59,64.62]
[1765419581353,0.05263869,131.65,131.62,3.28049142]
[1765419581656,0.05263869,131.65,131.62,0.05049142]
[1765419582856,3.35,131.83,131.74,3.23]
[1765419583058,3.35,131.83,131.75,64.6]
[1765419583354,3.35,131.83,131.76,106.2313]
[1765419583650,3.35,131.89,131.8,3.23]
[1765419583852,3.35,131.89,131.83,0.05154585]
[1765419584158,3.4044789,131.86,131.83,0.05154585]
[1765419584360,0.0501541,131.86,131.83,64.65830591]
[1765419584654,0.0501541,131.86,131.83,174.06150591]
[1765419584855,4.66968146,131.94,131.87,106.1428]
[1765419585056,3.35,131.94,131.88,106.1341]
[1765419585255,3.35,131.98,131.9,106.118]
[1765419585468,3.35,131.98,131.92,106.0979]
[1765419585854,0.04998079,131.96,131.94,0.05594755]
[1765419586064,3.39798762,131.96,131.87,106.1427]
[1765419586359,3.35,131.95,131.85,109.3868]
[1765419586547,109.4351,131.95,131.86,64.56]
[1765419586753,3.35,131.94,131.86,64.56]
[1765419586958,3.35,131.92,131.85,64.56]
[1765419587254,3.39898861,131.9,131.87,0.05335205]
[1765419587451,0.04898861,131.9,131.87,0.05335205]
[1765419588462,3.39898861,131.9,131.87,0.05335205]
[1765419589262,0.04898861,131.9,131.87,0.05335205]
[1765419589560,3.39898861,131.9,131.87,0.05335205]
[1765419589750,0.04898861,131.9,131.87,0.05335205]
[1765419590265,0.04898861,131.9,131.87,3.28335205]
[1765419590464,0.04898861,131.9,131.87,0.05335205]
[1765419591065,3.35,131.88,131.8,64.52]
[1765419591268,3.35,131.88,131.8,67.75]
[1765419592065,0.05502673,131.85,131.83,0.04924455]
[1765419592953,0.05502673,131.85,131.83,3.27924455]
[1765419593359,3.35,131.92,131.83,3.27924455]
[1765419593667,3.35,131.92,131.83,3.23]
[1765419593968,116.2802,131.92,131.83,3.23]
[1765419594267,0.05461088,131.89,131.86,0.05358968]
[1765419594767,3.40461088,131.89,131.86,0.05358968]
[1765419596364,3.35,131.87,131.78,3.23]
[1765419596554,3.35,131.87,131.76,113.0592]
[1765419596555,3.35,131.85,131.74,117.06237841]
[1765419596756,3.35,131.84,131.74,173.9564]
[1765419596958,3.35,131.84,131.75,3.23]
[1765419597158,3.35,131.83,131.75,3.23]
[1765419597359,0.05232523,131.8,131.78,3.28127256]
[1765419597658,3.40232523,131.8,131.78,0.05127256]
[1765419598467,0.05232523,131.8,131.78,0.05127256]
[1765419599571,3.40232523,131.8,131.71,6.8319]
[1765419599871,3.35,131.8,131.71,6.8319]
[1765419600553,3.35,131.8,131.7,109.5104]
[1765419600554,3.35,131.78,131.68,113.1311]
[1765419600760,3.35,131.76,131.74,0.0538969]
[1765419600955,3.3991239,131.76,131.74,0.0538969]
[1765419601270,0.0491239,131.76,131.74,0.0538969]
[1765419603062,3.35,131.84,131.75,109.4688]
[1765419603261,3.35,131.84,131.75,3.23]
[1765419604070,0.05754727,131.81,131.78,0.04893402]
[1765419604265,3.41754727,131.81,131.78,0.04893402]
[1765419604572,0.05754727,131.81,131.78,3.27893402]
[1765419604767,0.05754727,131.81,131.78,0.04893402]
[1765419605070,3.41754727,131.81,131.78,0.04893402]
[1765419605467,0.05754727,131.81,131.78,3.27893402]
[1765419606066,0.05754727,131.81,131.78,0.04893402]
[1765419606463,3.41754727,131.81,131.78,0.04893402]
[1765419606766,3.41754727,131.81,131.78,109.49693402]
[1765419606767,0.05754727,131.81,131.78,109.49693402]
[1765419606974,3.36,131.89,131.81,116.2498]
[1765419607363,3.36,131.89,131.81,109.4234]
[1765419607569,3.36,131.89,131.82,106.1859]
[1765419607766,3.36,131.89,131.82,109.4159]
[1765419607978,64.5,131.91,131.84,6.8247]
[1765419608159,64.5,131.91,131.86,0.05153614]
[1765419608364,0.05440988,131.89,131.86,3.28153614]
[1765419608567,0.05333197,131.89,131.86,109.43587945]
[1765419608765,0.05333197,131.89,131.87,10.0533]
[1765419609366,0.05333197,131.89,131.86,109.43237945]
[1765419609566,0.05333197,131.89,131.86,3.28207945]
[1765419610173,0.05333197,131.89,131.86,0.05207945]
[1765419610370,3.35333197,131.89,131.86,0.05207945]
[1765419611275,3.3,131.88,131.86,0.05207945]
[1765419611471,109.4622,131.85,131.78,3.33]
[1765419611670,3.3,131.82,131.74,3.33]
[1765419612269,10.1266,131.82,131.74,3.33]
[1765419612468,0.05168073,131.79,131.77,3.3863603]
[1765419613186,10.1244,131.86,131.78,3.33]
[1765419614180,0.04885869,131.83,131.81,0.05065189]
[1765419614695,67.8,131.9,131.81,3.38065189]
[1765419614977,3.3,131.87,131.78,64.46]
[1765419615498,109.4712,131.84,131.73,109.5832]
[1765419615783,0.05506094,131.8,131.77,0.04800007]
[1765419616680,3.35506094,131.8,131.77,0.04800007]
[1765419616869,3.3,131.79,131.77,0.04800007]
[1765419617180,10.1281,131.79,131.77,0.04800007]
[1765419617486,3.3,131.78,131.77,0.04800007]
[1765419618576,64.5,131.79,131.77,0.04800007]
[1765419618577,67.8,131.79,131.77,0.04800007]
[1765419618777,3.3,131.78,131.77,0.04800007]
[1765419618977,3.3,131.78,131.71,3.33]
[1765419619881,0.05350943,131.76,131.73,0.0556191]
[1765419620080,3.35350943,131.76,131.73,0.0556191]
[1765419620285,3.35350943,131.76,131.65,7.58597841]
[1765419620286,3.35350943,131.76,131.67,109.6316]
[1765419620585,3.3,131.76,131.67,109.6316]
[1765419620880,3.3,131.76,131.69,6.8327]
[1765419621386,0.05450071,131.74,131.71,0.04798839]
[1765419621988,0.05450071,131.74,131.71,3.37798839]
[1765419622186,0.05450071,131.74,131.71,0.04798839]
[1765419622187,3.35450071,131.74,131.71,0.04798839]
[1765419622590,0.05450071,131.74,131.71,0.04798839]
[1765419622980,67.85450071,131.74,131.71,0.04798839]
[1765419623175,3.3,131.72,131.71,0.04798839]
[1765419623376,8.836555,131.72,131.66,6.8342]
[1765419623576,5.536555,131.71,131.66,10.1642]
[1765419623779,3.3,131.72,131.66,3.33]
[1765419623983,5.53647838,131.71,131.67,3.33]
[1765419624192,3.3,131.73,131.62,106.3432]
[1765419624383,8.83540948,131.72,131.64,109.6562]
[1765419624580,0.05742181,131.7,131.67,3.38561109]
[1765419624777,0.05742181,131.7,131.68,113.1315]
[1765419624978,0.05742181,131.7,131.69,3.33]
[1765419625489,64.52,131.76,131.73,3.33]
[1765419625788,64.52,131.76,131.71,106.2741]
[1765419625789,64.52,131.76,131.7,3.33]
[1765419625985,64.52,131.76,131.71,10.1617]
[1765419626387,0.05033197,131.75,131.72,0.05626648]
[1765419627290,3.35033197,131.75,131.72,0.05626648]
[1765419627488,3.3,131.73,131.72,0.05626648]
[1765419627705,8.857909,131.73,131.72,0.05626648]
[1765419627994,8.85775806,131.73,131.67,3.33]
[1765419628185,3.3,131.73,131.67,3.33]
[1765419628386,3.3,131.7,131.63,3.33]
[1765419628692,3.3,131.69,131.6,3.33]
[1765419628892,0.05374958,131.66,131.63,0.05693881]
[1765419629786,3.35374958,131.66,131.63,0.05693881]
[1765419630797,0.05374958,131.66,131.63,3.38693881]
[1765419631089,3.35374958,131.66,131.63,0.05693881]
[1765419631686,67.84,131.65,131.55,109.731]
[1765419631886,74.6753,131.65,131.57,6.8389]
[1765419632091,3.3,131.64,131.56,3.33]
[1765419632798,0.04795644,131.61,131.59,0.05684189]
[1765419633385,3.34795644,131.61,131.59,0.05684189]
[1765419633695,67.84,131.6,131.52,106.4259]
[1765419633895,67.84,131.6,131.52,109.7559]
[1765419634091,67.84,131.6,131.52,10.1716]
[1765419634296,67.84,131.6,131.53,106.4176]
[1765419634596,64.54,131.6,131.56,10.1594]
[1765419634796,0.05510697,131.59,131.57,0.0582954]
[1765419634998,0.05510697,131.59,131.57,3.3782954]
[1765419635195,64.54,131.64,131.57,0.0582954]
[1765419635392,64.54,131.64,131.56,6.8394]
[1765419635594,176.39707709,131.64,131.54,10.1606]
[1765419635990,170.8768,131.64,131.54,10.1606]
[1765419636195,0.0479407,131.6,131.58,0.0498532]
[1765419636990,0.0479407,131.6,131.5,3.32]
[1765419636991,106.4125407,131.6,131.5,3.32]
[1765419637193,3.4,131.58,131.5,3.32]
[1765419637996,0.05240538,131.55,131.53,0.05330488]
[1765419638201,3.45240538,131.55,131.53,0.05330488]
[1765419638500,0.05240538,131.55,131.53,0.05330488]
[1765419639093,3.45240538,131.55,131.47,64.54]
[1765419639295,3.4,131.55,131.47,64.54]
[1765419640099,0.04888729,131.52,131.5,0.05843812]
[1765419640403,3.44888729,131.52,131.5,0.05843812]
[1765419642492,3.44888729,131.52,131.43,3.32]
[1765419642697,3.44888729,131.52,131.42,171.0656]
[1765419642698,3.4,131.5,131.42,6.8467]
[1765419642899,3.4,131.5,131.4,3.32]
[1765419642900,3.4,131.49,131.4,3.32]
[1765419643102,3.4,131.48,131.4,3.32]
[1765419643304,3.4,131.47,131.4,3.32]
[1765419643508,106.4664,131.48,131.4,3.32]
[1765419643509,3.45741842,131.45,131.42,0.05435206]
[1765419643805,0.05741842,131.45,131.42,0.05435206]
[1765419644602,0.05741842,131.45,131.44,3.32]
[1765419644799,0.05741842,131.45,131.43,6.8461]
[1765419645102,3.4,131.54,131.46,109.7942]
[1765419645308,3.4,131.53,131.47,6.8441]
[1765419645515,3.4,131.53,131.46,109.7929]
[1765419646102,0.04908846,131.51,131.48,3.37334086]
[1765419646503,0.04908846,131.51,131.48,10.21694086]
[1765419647010,0.04908846,131.51,131.48,3.37334086]
[1765419649008,0.04908846,131.51,131.5,3.32]
[1765419650103,0.04908846,131.51,131.48,3.37334086]
[1765419650905,3.44908846,131.51,131.48,0.05334086]
[1765419651911,10.29148846,131.51,131.48,0.05334086]
[1765419652106,3.44908846,131.51,131.48,0.05334086]
[1765419652306,0.04908846,131.51,131.48,3.37334086]
[1765419652507,0.04908846,131.51,131.48,0.05334086]
[1765419652707,0.04908846,131.51,131.48,3.37334086]
[1765419653807,0.04908846,131.51,131.48,0.05334086]
[1765419654908,0.04908846,131.51,131.48,3.37334086]
[1765419655510,0.04908846,131.51,131.48,0.05334086]
[1765419655717,3.44908846,131.51,131.48,0.05334086]
[1765419655915,3.4,131.5,131.48,0.05334086]
[1765419656105,3.44908846,131.51,131.48,0.05334086]
[1765419657505,0.04908846,131.51,131.48,0.05334086]
[1765419657803,3.44908846,131.51,131.48,0.05334086]
[1765419658018,0.04908846,131.51,131.48,6.89694086]
[1765419658523,3.44908846,131.51,131.48,0.05334086]
[1765419658816,0.04908846,131.51,131.48,3.37334086]
[1765419659718,0.04908846,131.51,131.48,6.89704086]
[1765419660618,0.04908846,131.51,131.48,10.21704086]
[1765419660804,3.44908846,131.51,131.48,0.05334086]
[1765419661212,3.44908846,131.51,131.48,3.37334086]
[1765419661213,0.04908846,131.51,131.48,3.37334086]
[1765419661415,0.04908846,131.51,131.5,3.32]
[1765419662314,0.04908846,131.51,131.48,0.05334086]
[1765419662315,3.44908846,131.51,131.48,0.05334086]
[1765419663816,0.04908846,131.51,131.48,3.37334086]
[1765419665618,0.04908846,131.51,131.5,3.22]
[1765419665917,64.64,131.55,131.5,3.22]
[1765419666217,3.26,131.57,131.51,10.062]
[1765419666513,3.26,131.57,131.51,3.22]
[1765419667115,0.05716842,131.55,131.53,0.05778392]
[1765419667312,0.05716842,131.55,131.53,3.27778392]
[1765419667725,0.05716842,131.55,131.54,3.22]
[1765419667920,67.9,131.6,131.54,109.6295]
[1765419668118,6.8371,131.62,131.55,3.22]
[1765419668313,5.49779707,131.61,131.55,10.06]
[1765419668625,3.26,131.62,131.56,3.22]
[1765419669015,0.04877702,131.6,131.58,0.05780895]
[1765419669620,0.04877702,131.6,131.58,3.27780895]
[1765419671626,0.04877702,131.6,131.59,3.12]
[1765419674126,0.04877702,131.6,131.58,0.05780895]
[1765419674320,3.24877702,131.6,131.58,0.05780895]
[1765419674717,3.2,131.58,131.5,3.12]
[1765419675020,8.73972729,131.57,131.5,3.12]
[1765419675224,5.53972729,131.56,131.5,3.12]
[1765419675545,3.2,131.57,131.51,3.12]
[1765419675726,0.04991305,131.55,131.53,0.05232715]
[1765419677829,0.04991305,131.55,131.53,3.17232715]
[1765419678231,0.04991305,131.55,131.53,0.05232715]
[1765419678719,0.04991305,131.55,131.53,3.17232715]
[1765419679120,0.04991305,131.55,131.53,0.05232715]
[1765419679728,3.24991305,131.55,131.53,0.05232715]
[1765419679929,0.04991305,131.55,131.53,0.05232715]
[1765419680131,3.24991305,131.55,131.53,0.05232715]
[1765419681530,0.04991305,131.55,131.53,0.05232715]
[1765419682118,0.04991305,131.55,131.53,3.17232715]
[1765419682518,0.04991305,131.55,131.53,116.43362715]
[1765419682723,5.55767901,131.61,131.55,3.12]
[1765419682924,6.71745008,131.65,131.57,3.12]
[1765419683126,5.55862622,131.64,131.57,3.12]
[1765419683329,64.62,131.66,131.6,3.12]
[1765419683635,9.91745008,131.72,131.64,3.12]
[1765419683827,5.5602727,131.71,131.64,3.12]
[1765419684026,3.25008382,131.69,131.64,3.12]
[1765419684233,3.25008382,131.69,131.66,0.05426334]
[1765419685730,3.2,131.67,131.61,31.98]
[1765419686221,3.2,131.67,131.61,38.8168]
[1765419686428,67.82,131.7,131.61,41.9368]
[1765419686735,0.05724126,131.67,131.64,3.17673551]
[1765419687131,0.05724126,131.67,131.64,109.50553551]
[1765419687338,0.05724126,131.67,131.65,3.12]
[1765419687538,3.2,131.74,131.67,109.4242]
[1765419687839,106.2157,131.79,131.67,109.4242]
[1765419687840,3.2,131.77,131.69,109.4098]
[1765419688032,3.2,131.77,131.71,6.8314]
[1765419688335,3.2,131.77,131.7,3.12]
[1765419688527,0.05347943,131.75,131.72,0.05418902]
[1765419689131,0.05347943,131.75,131.72,3.17418902]
[1765419690337,0.05347943,131.75,131.73,3.12]
[1765419690525,0.05347943,131.75,131.72,0.05418902]
[1765419690728,10.08367943,131.75,131.72,0.05418902]
[1765419691040,3.2,131.74,131.72,0.05418902]
[1765419691241,109.4835,131.7,131.62,3.12]
[1765419691441,109.4835,131.7,131.61,31.98]
[1765419691442,116.3248,131.69,131.61,31.98]
[1765419691737,10.0334,131.69,131.61,35.1]
[1765419692131,0.04945885,131.66,131.64,3.17445368]
[1765419692941,0.04945885,131.66,131.65,3.12]
[1765419694229,0.04945885,131.66,131.64,3.32445368]
[1765419694738,0.04945885,131.66,131.64,0.05445368]
[1765419696531,3.26945885,131.66,131.64,0.05445368]
[1765419696931,0.04945885,131.66,131.64,0.05445368]
[1765419698643,3.26945885,131.66,131.64,0.05445368]
[1765419699242,0.04945885,131.66,131.64,0.05445368]
[1765419699639,3.22,131.64,131.61,31.98]
[1765419700041,3.22,131.62,131.61,31.98]